Cogmind - Beta 14 @@@ ROGUE MODE // 2025.03.26 @ 13:45:59 Player: satan5 Result: Destroyed by D-53 Grenadier with Mini Grenade Launcher Performance ------------- Evolutions (0) 0 Regions Visited (4) 800 Robots Destroyed (11) 55 Value Destroyed (186) 186 Prototype IDs (23) 460 Alien Tech Used (0) 0 Bonus (259) 259 TOTAL SCORE: 1760 Bonus ------- Aligned with FarCom 300 Friendly Fire -41 Cogmind --------- Core Integrity 0/250 Matter 216/300 Energy 100/100 System Corruption 0% Temperature Cool (11) Movement Core (450) Ox8 Location -9/Mines Parts ------- > --- POWER (1) -------- (None) > --- PROPULSION (2) --- (None) > --- UTILITY (2) ------ Large Storage Unit > --- WEAPON (2) ------- Battle Cannon Rocket Launcher > --- INVENTORY (15) --- Light Ion Engine Light Ion Engine Nuclear Core Nuclear Core Reinforced Deuterium Engine Improved Terrain Scanner Cloak of Protection Chronowheel Particle Gun AWS/Thermal Mining Laser Peak State ------------ > --- POWER ------------ Light Ion Engine > --- PROPULSION ------- Aluminum Leg Wheel > --- UTILITY ---------- Large Storage Unit Seismic Detector > --- WEAPON ----------- Particle Gun Battle Cannon > --- INVENTORY -------- Light Ion Engine Nuclear Core Nuclear Core Reinforced Deuterium Engine Cloak of Protection Chronowheel AWS/Thermal Rocket Launcher [Rating: 14] Favorites ----------- Power Light Ion Engine Engine Light Ion Engine Propulsion Aluminum Leg Leg Aluminum Leg Wheel Wheel Utility Medium Storage Unit Device Seismic Detector Storage Medium Storage Unit Weapon Mining Laser Energy Gun Particle Gun Ballistic Gun Assault Rifle Ballistic Cannon Battle Cannon Launcher Rocket Launcher Special Weapon Mining Laser Build | -11 -10 -10 -10 -9 ------- Run | Yrd Mat Min Exi Min Slots Evolved . | . . . . . Power . | . . . . . Propulsion . | . . . . . Utility . | . . . . . Weapon . | . . . . . Parts Attached 19 | 6 4 4 2 3 Power 2 | 1 . 1 . . Engine 2 | 1 . 1 . . Core . | . . . . . Reactor . | . . . . . Propulsion 4 | 2 1 . 1 . Treads . | . . . . . Leg 3 | 2 1 . . . Wheel 1 | . . . 1 . Hover . | . . . . . Flight . | . . . . . Utility 5 | 1 2 1 1 . Device 1 | . . 1 . . Storage 4 | 1 2 . 1 . Processor . | . . . . . Hackware . | . . . . . Protection . | . . . . . Artifact . | . . . . . Weapon 8 | 2 1 2 . 3 Energy Gun 3 | 1 1 . . 1 Energy Cannon . | . . . . . Ballistic Gun 1 | 1 . . . . Ballistic Cannon 1 | . . . . 1 Launcher 1 | . . . . 1 Special Weapon 2 | . . 2 . . Impact Weapon . | . . . . . Slashing Weapon . | . . . . . Piercing Weapon . | . . . . . Special Melee Weapon . | . . . . . Unidentified Prototypes . | . . . . . Parts Lost 11 | . 5 . . 6 Power 2 | . 1 . . 1 Propulsion 4 | . 2 . . 2 Utility 1 | . . . . 1 Weapon 4 | . 2 . . 2 Highest Loss Streak 5 | . 5 . . 4 To Critical Strikes . | . . . . . Average Slot Usage (%) 86 | . 70 79 94 96 Engine 13 | . 10 13 14 13 Leg 15 | . 23 14 14 13 Wheel 5 | . . . 8 14 Device 10 | . . 8 14 13 Storage 14 | . 14 14 14 14 Energy Gun 3 | . 11 . . 11 Ballistic Gun 1 | . 10 . . . Ballistic Cannon 1 | . . . . 10 Special Weapon 19 | . . 28 28 3 Peak Build Rating 14 | 6 7 6 12 14 Average Rating 8 | 3 4 5 10 13 On Entrance 5 | . 6 2 6 12 Naked Turns . | . . . . . Heaviest Build 31 | 14 19 16 26 31 Greatest Support 20 | 20 20 10 10 10 Greatest Overweight (x) 3 | 1 . 1 2 3 Average Overweight (x) 1 | . . 1 1 2 Largest Inventory Capacity 15 | 8 10 10 15 15 Average Capacity 10 | 6 9 10 10 15 Most Carried 12 | 5 5 4 10 12 Average Carried 6 | 2 3 3 8 10 Final Capacity 15 | 8 10 10 15 15 Final Carried 12 | 3 4 4 10 12 Class Distribution -------------------- 100% | Mutant Dominant Class ---------------- Mutant | -10/Materials Mutant | -10/Mines Mutant | -10/Exiles Mutant | -9/Mines Resources | -11 -10 -10 -10 -9 ----------- Run | Yrd Mat Min Exi Min Matter Collected 401 | 262 76 40 . 23 Remotely . | . . . . . Salvage Created 269 | 27 196 . . 46 Parts 16 | 3 4 3 . 6 Haulers Intercepted 1 | . 1 . . . Recyclers Shooed . | . . . . . Parts Field Recycled . | . . . . . Retrieved Matter . | . . . . . Parts Self-Destructed . | . . . . . Prevented . | . . . . . Kills | -11 -10 -10 -10 -9 ------- Run | Yrd Mat Min Exi Min Combat Hostiles Destroyed 18 | . 3 . . 15 Guns 4 | . 3 . . 1 Cannons 2 | . . . . 2 AOE 12 | . . . . 12 Classes Destroyed 6 | 1 2 1 . 2 Worker 2 | . . 1 . 1 Tunneler 2 | 1 . . . 1 Hauler 1 | . 1 . . . Swarmer 3 | . . . . 3 Grunt 3 | . 3 . . . Assembled 12 | . . . . 12 Best Kill Streak 13 | 1 3 1 . 13 Combat Bots Only 12 | . 3 . . 12 Max Kills in Single Turn 3 | 1 1 1 . 3 Gunslinging . | . . . . . Exploded 3 | . . . . 3 Melee . | . . . . . Uniques/NPCs Destroyed . | . . . . . Combat | -11 -10 -10 -10 -9 -------- Run | Yrd Mat Min Exi Min Hostile Shots Fired 114 | . 70 3 . 41 Missed 21 | . 11 2 . 8 Damage Taken 1234 | . 765 14 . 455 Core 258 | . 152 . . 106 Absorbed by Shields . | . . . . . Core Remaining (%) 100 | 100 . . . . Volleys Fired 47 | 1 24 4 . 18 Largest 2 | 2 2 2 . 2 Hottest 200 | 70 70 200 . 200 Shots Fired 78 | 2 44 8 . 24 Gun 52 | 2 44 . . 6 Cannon 2 | . . . . 2 Launcher 7 | . . . . 7 Special 17 | . . 8 . 9 Kinetic 23 | 1 20 . . 2 Thermal 48 | 1 24 8 . 15 Explosive 7 | . . . . 7 Electromagnetic . | . . . . . Robot Hit Streak 9 | 1 9 1 . 2 Robot Miss Streak 6 | . 3 1 . 6 Penetration Max . | . . . . . Secondary Targets 1 | . 1 . . . Max Gunslinging Chain 1 | . 1 . . . Shots Hit Robots 42 | 1 30 4 . 7 Core Hits 46 | 1 10 2 . 33 Critical Kills . | . . . . . Critical Parts Destroyed . | . . . . . Critical Strikes 2 | . 1 . . 1 Burn 2 | . 1 . . 1 Melee Attacks . | . . . . . Impact . | . . . . . Slashing . | . . . . . Piercing . | . . . . . Sneak Attacks . | . . . . . Combat Hostiles . | . . . . . Follow-up Attacks . | . . . . . Damage Inflicted 1465 | 13 390 96 . 966 Guns 452 | 13 390 . . 49 Cannons 27 | . . . . 27 Explosions 818 | . . . . 818 Melee . | . . . . . Ramming . | . . . . . Kinetic 236 | . 209 . . 27 Thermal 411 | 13 181 96 . 121 Explosive 818 | . . . . 818 Electromagnetic . | . . . . . Impact . | . . . . . Slashing . | . . . . . Piercing . | . . . . . Highest Corruption . | . . . . . Average Corruption . | . . . . . Corruption Purged . | . . . . . Corruption Blocked . | . . . . . Overload Shots . | . . . . . Overflow Damage 4 | . . . . 4 Projectiles . | . . . . . Explosions 4 | . . . . 4 Melee . | . . . . . Knockbacks . | . . . . . Impact . | . . . . . Kinetic . | . . . . . Secondary . | . . . . . Self-Inflicted Damage 106 | . . . . 106 Shots 3 | . . . . 3 Rammed . | . . . . . Targets Rammed . | . . . . . Kicked . | . . . . . Crushed . | . . . . . Highest Temperature 346 | 9 346 65 . 276 Average Temperature 111 | 6 148 28 . 110 Received Heat Transfer 472 | . 423 9 . 40 Effects 3 | . 1 . . 2 Interference 2 | . . . . 2 Short Circuit 1 | . 1 . . . Siege Activations . | . . . . . Robots Corrupted . | . . . . . Combat Hostiles . | . . . . . Parts Fried . | . . . . . Impact Corruptions . | . . . . . Robots Melted . | . . . . . Combat Hostiles . | . . . . . Parts Melted 2 | . 1 . . 1 Heat Transferred 1153 | 37 581 200 . 335 Parts Sabotaged . | . . . . . Parts Stolen . | . . . . . Parts Stripped . | . . . . . Power Chain Reactions . | . . . . . Alert | -11 -10 -10 -10 -9 ------- Run | Yrd Mat Min Exi Min Peak Influence 108 | 5 66 31 . 108 Initial 25 | . 3 25 . . Average 33 | 1 29 19 . 69 Maximum Alert Level . | . . . . . Low Security (%) 100 | 100 100 100 . 100 Level 1 . | . . . . . Level 2 . | . . . . . Level 3 . | . . . . . Level 4 . | . . . . . Level 5 . | . . . . . High Security . | . . . . . Max Security . | . . . . . Squads Dispatched 1 | . 1 . . . Investigation . | . . . . . Extermination . | . . . . . Reinforcement 1 | . 1 . . . Assault . | . . . . . Garrison . | . . . . . Intercept . | . . . . . Searches Triggered . | . . . . . Construction Impeded . | . . . . . Haulers Reinforced . | . . . . . Active Scanning Responses . | . . . . . Cargo Convoy Interrupts . | . . . . . Stealth | -11 -10 -10 -10 -9 --------- Run | Yrd Mat Min Exi Min Distress Signals 1 | . 1 . . . Communications Jammed . | . . . . . Distress Signals . | . . . . . Times Spotted 28 | . 7 1 . 20 Peak Tracking Total 7 | . 5 1 . 7 Tactical Retreats . | . . . . . Traps | -11 -10 -10 -10 -9 ------- Run | Yrd Mat Min Exi Min Traps Triggered 1 | . 1 . . . Indirectly . | . . . . . Trap Hack Attempts . | . . . . . Triggered . | . . . . . Disarmed . | . . . . . Reprogrammed . | . . . . . Reused . | . . . . . Traps Extracted . | . . . . . Installed . | . . . . . Triggered . | . . . . . Machines | -11 -10 -10 -10 -9 ---------- Run | Yrd Mat Min Exi Min Machines Disabled 1 | . . . . 1 Max in Single Turn 1 | . . . . 1 Machines Repaired . | . . . . . Machines Dismantled . | . . . . . Machines Sabotaged . | . . . . . Overloaded Fab Kills . | . . . . . Hacking | -11 -10 -10 -10 -9 --------- Run | Yrd Mat Min Exi Min Machines Accessed 6 | . 3 . 3 . Terminals 1 | . 1 . . . Fabricators . | . . . . . Repair Stations . | . . . . . Recycling Units 2 | . 2 . . . Scanalyzers . | . . . . . Garrison Access . | . . . . . Total Hacks 40 | . 7 . 33 . Successful 39 | . 6 . 33 . Failed 1 | . 1 . . . Catastrophic . | . . . . . Database Lockouts . | . . . . . Manual 5 | . 4 . 1 . Terminals 2 | . 2 . . . Fabricators . | . . . . . Repair Stations . | . . . . . Recycling Units 5 | . 5 . . . Scanalyzers . | . . . . . Garrison Access . | . . . . . Terminal Hacks 33 | . . . 33 . Record 32 | . . . 32 . Derelict Proto ID Bank 1 | . . . 1 . Fabricator Hacks . | . . . . . Repair Station Hacks . | . . . . . Recycling Unit Hacks 2 | . 2 . . . Retrieve Components 2 | . 2 . . . Scanalyzer . | . . . . . Garrison Access Hacks . | . . . . . Unauthorized Hacks 4 | . 4 . . . Terminals 2 | . 2 . . . Botnet 1 | . 1 . . . Operators 1 | . 1 . . . Fabricators . | . . . . . Repair Stations . | . . . . . Recycling Units 2 | . 2 . . . Reject 1 | . 1 . . . Mask 1 | . 1 . . . Scanalyzers . | . . . . . Garrison Access . | . . . . . Data Cores Recovered . | . . . . . Used . | . . . . . Hacking Detections 2 | . 2 . . . Full Trace Events . | . . . . . Feedback Events . | . . . . . Feedback Blocked . | . . . . . Robot Schematics Acquired . | . . . . . Robots Built . | . . . . . Authchips . | . . . . . Time . | . . . . . Total Robot Build Rating . | . . . . . Part Schematics Acquired . | . . . . . Parts Built . | . . . . . Authchips . | . . . . . Time . | . . . . . Total Part Build Rating . | . . . . . Parts Repaired . | . . . . . Time . | . . . . . Parts Recycled . | . . . . . Recycled Matter . | . . . . . Retrieved Matter . | . . . . . Retrieved Components 3 | . 3 . . . Parts Scanalyzed . | . . . . . Part Schematics Acquired . | . . . . . Parts Damaged . | . . . . . Bothacking | -11 -10 -10 -10 -9 ------------ Run | Yrd Mat Min Exi Min Used RIF Installer . | . . . . . Robots Hacked . | . . . . . Non-combat . | . . . . . Combat . | . . . . . Robot Hacks Applied . | . . . . . Relay Couplers Released . | . . . . . Fabnet Peak Effective % . | . . . . . Robots Rewired . | . . . . . Allies Hacked . | . . . . . Hacks Repelled . | . . . . . Allies | -11 -10 -10 -10 -9 -------- Run | Yrd Mat Min Exi Min Total Allies 1 | . . . . 1 Largest Group 1 | . . . . 1 Highest-Rated Group 31 | . . . . 31 Highest-Rated Ally 31 | . . . . 31 Total Orders . | . . . . . Ally Attacks 9 | . . . . 9 Total Damage 147 | . . . . 147 Kills 3 | . . . . 3 Allies Corrupted . | . . . . . Allies Melted . | . . . . . Intel | -11 -10 -10 -10 -9 ------- Run | Yrd Mat Min Exi Min Robot Analysis Total . | . . . . . Derelict Logs Recovered 2 | . . . . 2 Drone Launches . | . . . . . Drone Recoveries . | . . . . . Exploration | -11 -10 -10 -10 -9 ------------- Run | Yrd Mat Min Exi Min Turns Passed 1964 | 45 275 625 713 306 Spaces Moved 1313 | 30 163 305 599 216 Core 14 | 14 . . . . Treads . | . . . . . Legs 622 | 16 163 305 138 . Wheels 677 | . . . 461 216 Hover . | . . . . . Flight . | . . . . . Fastest Speed 50 | 50 120 190 95 110 Average Speed 132 | 92 120 190 117 110 Slowest Speed 190 | 120 120 190 190 125 Overloaded Moves . | . . . . . Propulsion Burnouts . | . . . . . Robots Hopped . | . . . . . Cave-ins Triggered . | . . . . . Exploration Rate (%) 53 | 3 44 67 93 61 Regions Visited 4 Branch Regions 3 Pre-discovered Areas 2 | . . . 1 1 Known Exits Taken . | . . . . . Unknown Exits Taken 4 | 1 1 1 1 . Scrap Searched . | . . . . . Spaces Dug . | . . . . . Terrain Destroyed 64 | . . 2 . 62 Melee . | . . . . . Projectile 3 | . . 2 . 1 AOE 61 | . . . . 61 Terrain Rammed . | . . . . . Walls Destroyed . | . . . . . Machines Disabled . | . . . . . Actions | -11 -10 -10 -10 -9 --------- Run | Yrd Mat Min Exi Min Total 1419 | 44 199 327 608 241 Wait 12 | . 1 11 . . Move 1309 | 29 162 304 598 216 Hop . | . . . . . Pick Up 26 | 7 5 4 6 4 Fast Attach 3 | 3 . . . . Attach 13 | 3 3 4 1 2 Detach . | . . . . . Swap 3 | . 1 . 1 1 Drop 5 | 1 3 . 1 . Fire 47 | 1 24 4 . 18 Melee . | . . . . . Ram . | . . . . . Kick . | . . . . . Crush . | . . . . . Escape Stasis . | . . . . . Rewire 1 | . . . 1 . Trap . | . . . . . Miscellaneous . | . . . . . Route ------- -11/Scrapyard -10/Materials -10/Mines -10/Exiles (discovered 2 exits: [*Min x2]) -9/Mines (discovered 1 exit: [*Mat]) History --------- Turn | Location | Event 11 | -11/Scrapyard | Discovered new exit (range 15) 46 | -11/Scrapyard | Entered Materials 162 | -10/Materials | Discovered new exit (range 6) 286 | -10/Materials | Lost 5 parts (1p2n2w) 287 | -10/Materials | Core integrity fell below 50% 303 | -10/Materials | Build established: Mutant 321 | -10/Materials | Entered Mines 333 | -10/Mines | Met a Derelict bent on vengeance 587 | -10/Mines | Received a Rocket Launcher from a helpful Derelict 937 | -10/Mines | Deemed a non-threat by the Exiles lab entrance 938 | -10/Mines | Discovered new exit (range 5) 946 | -10/Mines | Entered Exiles 1003 | -10/Exiles | Discovered new exit (range 14) 1046 | -10/Exiles | Met 8R-AWN 1075 | -10/Exiles | Met EX-HEX 1130 | -10/Exiles | Met EX-BIN 1151 | -10/Exiles | Aligned with FarCom system 1153 | -10/Exiles | Given EX-Vault access code 1196 | -10/Exiles | Opened EX-Vault 1206 | -10/Exiles | Found Cloak of Protection 1213 | -10/Exiles | Found Chronowheel 1216 | -10/Exiles | Found AWS/Thermal 1246 | -10/Exiles | Warned to stay clear of 0b10 Research branches 1273 | -10/Exiles | Met EX-DEC 1305 | -10/Exiles | Visited The Gauntlet 1541 | -10/Exiles | Learned location of Zion (-6) 1649 | -10/Exiles | Discovered new exit (range 10) 1659 | -10/Exiles | Stole three prototypes: Cloak of Protection, Chronowheel, AWS/Thermal 1659 | -10/Exiles | Entered Mines 1726 | -9/Mines | A weapon hastily lodged in a ceiling crevice suddenly fell to the ground 1778 | -9/Mines | Discovered new exit (range 11) 1809 | -9/Mines | Received a Mining Laser from a helpful Derelict 1923 | -9/Mines | Assembled infested the area 1928 | -9/Mines | Assisted by a Guerilla fighting off Assembled 1944 | -9/Mines | Core integrity fell below 20% 1965 | -9/Mines | Destroyed by D-53 Grenadier with Mini Grenade Launcher Last Messages --------------- 01953_ as-93186 destroyed. 01955_ as-49249 destroyed. 01955_ Destroyed Asb. Hover Unit. 01955_ as-13349 destroyed. 01957_ as-40910 suffers critical hit (Burn). 01957_ as-60451 destroyed. 01957_ as-40910 destroyed. 01957_ as-37521 destroyed. 01957_ Lgt. Ion Engine destroyed. 01958_ Aluminum Leg destroyed. 01959_ Seismic Detector destroyed. 01961_ The unstable cave ceiling collapses. 01963_ as-16025 destroyed. 01963_ as-04762 destroyed. 01964_ The unstable cave ceiling collapses. 01964_ Wheel destroyed. 01964_ as-59846 destroyed. 01964_ C-30 ARC bursts open, deploying its payload. 01964_ D-53 Grenadier unfolds itself. Map ----- +----------------------------------------------------+ | ??????????????????# | | ??????????????????# """ """ """ """ | | ??????????????????# """ """ """ """? | | ??????????????????# """ """ """ """ | | ??????????????????# | | ??????????????????# """ """ """ """ | | ??????????????????# """ """ """ """? | | ??????????????????# """ """ """ """ | | ??????????????????# | | ??????????????????############# ####### | | ??????????????????????????????# #?????? | | ????????????????####??????????# #?????# | | ???????????????## ##???###???# #???### | | ???????????????# ##?## ##### ##### | | ????????????????# ### | | ????????????????# | | ?????????######## ########## | | ????###### d ##????????## | | ????# % % ##??????????### | | ????# d ####?????????????? | | ????# ###% ##?????? ?????????? | | ????# #?# ##???? ?????????? | | ????# #?## "" ### #????????? | | ????# #??### " #?????????? | | ????# #????## g #??????????? | | ????# #?????# @% #???????????? | | ????# #????# #???????????? | | ???? ????## #???????????? | | ???? ?????# a #??????????? | | ???? ?????## #?????????? | | ???? ??????# # # ??????????? | | ???? ?????? # ##?? ??????????? | | ????" ?????? ? #???????????????? | | ???? ?????? ? #??????????????? | | ???? ?????? ? ###??????????????? | | ????# ?????? ? #????????????????? | | ????????????? ? #????????????????? | | ????????????? ? ????????????????? | | ???????????????? ????????????????? | | ???????????????? ???????????????????? | | ???????????????? ?????????????????????? | | ??????????????????????????????????????? | | ??????????????????????????????????????? | | ??????????????????????????????????????? | | ??????????????????????????????????????? | | ??????????????????????????????????????? | | ??????????????????????????????????????? | | ??????????????????????????????????????? | | ??????????????????????????????????????? | | ??????????????????????????????????????? | +----------------------------------------------------+ Best States ------------- Heat Dissipation 25 Energy Generation 10 Energy Capacity 250 Matter Stores 300 Matter Capacity 300 Sight Range 16 Terrain Scan Density 10 Evasion (%) 55 Item Schematics ----------------- None Robot Schematics ------------------ None Fabricated ------------ Nothing Alien Tech Used ----------------- None Achievements -------------- None Challenges ------------ None Game ------ Seed HardcellDataFemtoactuators Manual? 0 Play Time 00:11:55 Cumulative 279.2 hours Start 2025.03.26 @ 13:29:54 End 2025.03.26 @ 13:45:59 Sessions 1 Manual Loads 0 Difficulty Rogue Special Mode None Game No. 119 Rogue 105 Adventurer 14 Explorer 0 Win Type - Total 16 Types 13/0/1/1/0/0/0/0/1 Lore% 62 Gallery% 77 Achievement% 67 Wizard Run 0 Options --------- Layout 1 ASCII 0 Keyboard 0 Movement Mouse Keybinds 0 Fullscreen 1 Font 24/Smallcaps Map View 50x35 Zoom Use 0% Tactical HUD 1 Map Filters NONE Filters NONE Steam 1 RUN: cb6fe01a-ef84-4089-be88-889fa5e97c90